fUST/lending_fUST_20260508
["ID","MTS","AMOUNT","RATE_DAILY","PERIOD"]
[421855671,1778231448000,-500.0,0.00012125,2]
[421855667,1778231448000,-289.83,0.00012125,2]
[421855659,1778231448000,-749.54,0.00012124,2]
[421855676,1778231448000,-500.0,0.00012125,2]
[421855682,1778231448000,-500.0,0.00012125,2]
[421855680,1778231448000,-500.0,0.00012125,2]
[421855691,1778231448000,-500.0,0.00012125,2]
[421855694,1778231448000,-1459.13,0.00012125,2]
[421855709,1778231448000,-500.0,0.00012125,2]
[421855685,1778231448000,-500.0,0.00012125,2]
[421855696,1778231448000,-574.3,0.00012125,2]
[421855689,1778231448000,-575.07,0.00012125,2]
[421855698,1778231448000,-626.06,0.00012125,2]
[421855700,1778231448000,-1405.58,0.00012125,2]
[421855702,1778231448000,-506.88,0.00012125,2]
[421855708,1778231448000,-668.88,0.00012125,2]
[421855706,1778231448000,-500.0,0.00012125,2]
[421855704,1778231448000,-223.75356281,0.00012125,2]
[421855715,1778231448000,-1554.37,0.00012125,2]
[421855673,1778231448000,-578.58,0.00012125,2]
[421855687,1778231448000,-518.36,0.00012125,2]
[421855665,1778231448000,-500.0,0.00012124,2]
[421855610,1778231448000,-500.0,0.00012118,2]
[421855663,1778231448000,-643.3,0.00012124,2]
[421855713,1778231448000,-911.99,0.00012125,2]
[421855616,1778231448000,-500.0,0.00012118,2]
[421855626,1778231448000,-1929.06,0.00012118,2]
[421855618,1778231448000,-500.0,0.00012118,2]
[421855612,1778231448000,-1537.23,0.00012118,2]
[421855620,1778231448000,-914.28,0.00012118,2]
[421855624,1778231448000,-342.86,0.00012118,2]
[421855623,1778231448000,-2483.47,0.00012118,2]
[421855628,1778231448000,-1001.21,0.00012118,2]
[421855630,1778231448000,-567.58,0.00012118,2]
[421855632,1778231448000,-1100.88,0.00012118,2]
[421855647,1778231448000,-966.81,0.00012124,2]
[421855641,1778231448000,-934.48,0.00012124,2]
[421855651,1778231448000,-2154.73,0.00012124,2]
[421855645,1778231448000,-973.86,0.00012124,2]
[421855636,1778231448000,-576.02,0.00012118,2]
[421855649,1778231448000,-3568.78,0.00012124,2]
[421855637,1778231448000,-787.16,0.00012124,2]
[421855639,1778231448000,-1220.01,0.00012124,2]
[421855634,1778231448000,-500.0,0.00012118,2]
[421855653,1778231448000,-2116.84,0.00012124,2]
[421855633,1778231448000,-1385.29,0.00012118,2]
[421855643,1778231448000,-500.0,0.00012124,2]
[421855635,1778231448000,-4905.18,0.00012118,2]
[421855678,1778231448000,-963.63,0.00012125,2]
[421855661,1778231448000,-2703.92,0.00012124,2]
[421855711,1778231448000,-558.3,0.00012125,2]
[421855614,1778231448000,-746.22,0.00012118,2]
[421855719,1778231448000,-3117.39,0.00012125,2]
[421855781,1778231448000,-3539.6,0.00012329,2]
[421855782,1778231448000,-2949.67,0.00012329,2]
[421855773,1778231448000,-500.0,0.00012323,2]
[421855778,1778231448000,-6116.44,0.00012329,2]
[421855776,1778231448000,-8807.67,0.00012329,2]
[421855787,1778231448000,-1185.41,0.00012329,2]
[421855785,1778231448000,-1706.99,0.00012329,2]
[421855788,1778231448000,-987.84,0.00012329,2]
[421855786,1778231448000,-1422.49,0.00012329,2]
[421855795,1778231448000,-275.69,0.00012329,2]
[421855794,1778231448000,-330.82,0.00012329,2]
[421855793,1778231448000,-396.99,0.00012329,2]
[421855784,1778231448000,-2048.38,0.00012329,2]
[421855789,1778231448000,-823.2,0.00012329,2]
[421855792,1778231448000,-476.39,0.00012329,2]
[421855791,1778231448000,-571.66,0.00012329,2]
[421855796,1778231448000,-229.74,0.00012329,2]
[421855799,1778231448000,-797.73,0.00012329,2]
[421855801,1778231448000,-155.0,0.00012354,2]
[421855797,1778231448000,-191.45,0.00012329,2]
[421855800,1778231448000,-155.0,0.00012349,2]
[421855798,1778231448000,-159.54,0.00012329,2]
[421855802,1778231448000,-500.0,0.00012392,2]
[421855803,1778231448000,-728.45,0.00012392,2]
[421855717,1778231448000,-500.0,0.00012125,2]
[421855780,1778231448000,-4247.53,0.00012329,2]
[421855774,1778231448000,-12683.04,0.00012329,2]
[421855790,1778231448000,-686.0,0.00012329,2]
[421855771,1778231448000,-500.0,0.00012323,2]
[421855721,1778231448000,-1286.7596,0.00012125,2]
[421855775,1778231448000,-10569.2,0.00012329,2]
[421855723,1778231448000,-500.0,0.00012125,2]
[421855725,1778231448000,-538.88,0.00012125,2]
[421855726,1778231448000,-500.0,0.00012125,2]
[421855740,1778231448000,-522.75,0.00012125,2]
[421855730,1778231448000,-1515.53,0.00012125,2]
[421855728,1778231448000,-745.57,0.00012125,2]
[421855743,1778231448000,-500.0,0.00012125,2]
[421855747,1778231448000,-834.58,0.00012125,2]
[421855734,1778231448000,-521.42,0.00012125,2]
[421855745,1778231448000,-657.95,0.00012125,2]
[421855742,1778231448000,-534.67,0.00012125,2]
[421855732,1778231448000,-500.0,0.00012125,2]
[421855783,1778231448000,-2458.06,0.00012329,2]
[421855779,1778231448000,-5097.03,0.00012329,2]
[421855738,1778231448000,-500.0,0.00012125,2]
[421855777,1778231448000,-7339.72,0.00012329,2]
[421855757,1778231448000,-3632.30774849,0.00012181,2]
[421855753,1778231448000,-1473.37,0.00012125,2]
[421855755,1778231448000,-500.0,0.00012125,2]
[421855769,1778231448000,-500.0,0.00012323,2]
[421855751,1778231448000,-500.0,0.00012125,2]
[421855749,1778231448000,-500.0,0.00012125,2]
[421855736,1778231448000,-2614.11,0.00012125,2]
[421855767,1778231448000,-151.0,0.000123,2]
[421855841,1778231449000,-500.0,0.00012399,2]
[421855844,1778231449000,-963.63,0.00012399,2]
[421855842,1778231449000,-578.58,0.00012399,2]
[421855840,1778231449000,-500.0,0.00012399,2]
[421855851,1778231449000,-500.0,0.00012399,2]
[421855833,1778231449000,-2116.84,0.00012398,2]
[421855836,1778231449000,-749.54,0.00012398,2]
[421855831,1778231449000,-3568.78,0.00012398,2]
[421855835,1778231449000,-500.0,0.00012398,2]
[421855843,1778231449000,-500.0,0.00012399,2]
[421855834,1778231449000,-171.03446295,0.00012398,2]
[421855845,1778231449000,-500.0,0.00012399,2]
[421855863,1778231449000,-500.0,0.00012399,2]
[421855846,1778231449000,-500.0,0.00012399,2]
[421855849,1778231449000,-518.36,0.00012399,2]
[421855847,1778231449000,-374.2,0.00012399,2]
[421855850,1778231449000,-575.07,0.00012399,2]
[421855855,1778231449000,-1405.58,0.00012399,2]
[421855861,1778231449000,-911.99,0.00012399,2]
[421855852,1778231449000,-1459.13,0.00012399,2]
[421855856,1778231449000,-506.88,0.00012399,2]
[421855854,1778231449000,-626.06,0.00012399,2]
[421855862,1778231449000,-1554.37,0.00012399,2]
[421855859,1778231449000,-500.0,0.00012399,2]
[421855837,1778231449000,-2703.92,0.00012398,2]
[421855848,1778231449000,-500.0,0.00012399,2]
[421855838,1778231449000,-643.3,0.00012398,2]
[421855805,1778231449000,-500.0,0.00012392,2]
[421855830,1778231449000,-966.81,0.00012398,2]
[421855804,1778231449000,-500.0,0.00012392,2]
[421855860,1778231449000,-558.3,0.00012399,2]
[421855810,1778231449000,-500.0,0.00012392,2]
[421855812,1778231449000,-746.22,0.00012392,2]
[421855813,1778231449000,-500.0,0.00012392,2]
[421855814,1778231449000,-500.0,0.00012392,2]
[421855807,1778231449000,-1587.79,0.00012392,2]
[421855806,1778231449000,-19503.01,0.00012392,2]
[421855809,1778231449000,-679.82,0.00012392,2]
[421855815,1778231449000,-914.28,0.00012392,2]
[421855808,1778231449000,-3898.24,0.00012392,2]
[421855811,1778231449000,-1537.23,0.00012392,2]
[421855816,1778231449000,-2483.47,0.00012392,2]
[421855817,1778231449000,-1929.06,0.00012392,2]
[421855819,1778231449000,-567.58,0.00012392,2]
[421855823,1778231449000,-4905.18,0.00012392,2]
[421855818,1778231449000,-1001.21,0.00012392,2]
[421855824,1778231449000,-576.02,0.00012392,2]
[421855820,1778231449000,-1100.88,0.00012392,2]
[421855821,1778231449000,-1385.29,0.00012392,2]
[421855822,1778231449000,-500.0,0.00012392,2]
[421855826,1778231449000,-1220.01,0.00012398,2]
[421855825,1778231449000,-787.16,0.00012398,2]
[421855827,1778231449000,-934.48,0.00012398,2]
[421855829,1778231449000,-973.86,0.00012398,2]
[421855839,1778231449000,-509.75,0.00012398,2]
[421855828,1778231449000,-230.94,0.00012398,2]
[421855832,1778231449000,-2154.73,0.00012398,2]
[421855857,1778231449000,-500.0,0.00012399,2]
[421855864,1778231449000,-3117.39,0.00012399,2]
[421855853,1778231449000,-574.3,0.00012399,2]
[421855897,1778231449000,-166.44,0.00012521,2]
[421855889,1778231449000,-3045.17725455,0.000125,2]
[421855898,1778231449000,-166.44,0.00012521,2]
[421855895,1778231449000,-166.44,0.00012519,2]
[421855899,1778231449000,-166.43,0.00012523,2]
[421855901,1778231449000,-3045.17725455,0.00012561,2]
[421855900,1778231449000,-166.44,0.00012523,2]
[421855906,1778231449000,-10000.0,0.000126,2]
[421855902,1778231449000,-500.0,0.00012597,2]
[421855903,1778231449000,-500.0,0.00012597,2]
[421855909,1778231449000,-1509.0,0.00012605,2]
[421855905,1778231449000,-10000.0,0.000126,2]
[421855892,1778231449000,-151.0,0.000125,2]
[421855908,1778231449000,-799.0,0.00012605,2]
[421855910,1778231449000,-325.0,0.00012605,2]
[421855904,1778231449000,-500.0,0.00012597,2]
[421855919,1778231449000,-3898.24,0.00012666,2]
[421855915,1778231449000,-500.0,0.00012666,2]
[421855913,1778231449000,-500.0,0.00012666,2]
[421855912,1778231449000,-5124.0,0.00012605,2]
[421855858,1778231449000,-668.88,0.00012399,2]
[421855917,1778231449000,-19503.01,0.00012666,2]
[421855918,1778231449000,-1587.79,0.00012666,2]
[421855916,1778231449000,-500.0,0.00012666,2]
[421855911,1778231449000,-154.0,0.00012605,2]
[421855914,1778231449000,-728.45,0.00012666,2]
[421855907,1778231449000,-10000.0,0.000126,2]
[421855890,1778231449000,-3045.17725455,0.000125,2]
[421855920,1778231449000,-679.82,0.00012666,2]
[421855891,1778231449000,-10000.0,0.000125,2]
[421855893,1778231449000,-11790.23811893,0.000125,2]
[421855865,1778231449000,-1286.7596,0.00012399,2]
[421855875,1778231449000,-522.75,0.00012399,2]
[421855866,1778231449000,-500.0,0.00012399,2]
[421855870,1778231449000,-1515.53,0.00012399,2]
[421855871,1778231449000,-500.0,0.00012399,2]
[421855869,1778231449000,-745.57,0.00012399,2]
[421855868,1778231449000,-500.0,0.00012399,2]
[421855873,1778231449000,-2614.11,0.00012399,2]
[421855872,1778231449000,-521.42,0.00012399,2]
[421855874,1778231449000,-500.0,0.00012399,2]
[421855876,1778231449000,-534.67,0.00012399,2]
[421855878,1778231449000,-657.95,0.00012399,2]
[421855867,1778231449000,-538.88,0.00012399,2]
[421855886,1778231449000,-3906.89307916,0.00012463,2]
[421855887,1778231449000,-10000.0,0.000125,2]
[421855894,1778231449000,-166.44,0.00012519,2]
[421855888,1778231449000,-10000.0,0.000125,2]
[421855880,1778231449000,-500.0,0.00012399,2]
[421855877,1778231449000,-500.0,0.00012399,2]
[421855896,1778231449000,-3045.17725455,0.0001252,2]
[421855885,1778231449000,-187.966383,0.00012404,2]
[421855879,1778231449000,-834.58,0.00012399,2]
[421855882,1778231449000,-1473.37,0.00012399,2]
[421855881,1778231449000,-500.0,0.00012399,2]
[421855884,1778231449000,-577.936,0.00012404,2]
[421855883,1778231449000,-500.0,0.00012399,2]
[421855941,1778231450000,-3568.78,0.00012672,2]
[421855942,1778231450000,-2154.73,0.00012672,2]
[421855944,1778231450000,-307.126525,0.00012672,2]
[421855939,1778231450000,-973.86,0.00012672,2]
[421855943,1778231450000,-2116.84,0.00012672,2]
[421855959,1778231450000,-1459.13,0.00012673,2]
[421855951,1778231450000,-500.0,0.00012673,2]
[421855953,1778231450000,-500.0,0.00012673,2]
[421855957,1778231450000,-575.07,0.00012673,2]
[421855952,1778231450000,-963.63,0.00012673,2]
[421855958,1778231450000,-500.0,0.00012673,2]
[421855956,1778231450000,-518.36,0.00012673,2]
[421855955,1778231450000,-500.0,0.00012673,2]
[421855954,1778231450000,-500.0,0.00012673,2]
[421855960,1778231450000,-574.3,0.00012673,2]
[421855964,1778231450000,-500.0,0.00012673,2]
[421855961,1778231450000,-626.06,0.00012673,2]
[421855966,1778231450000,-500.0,0.00012673,2]
[421855962,1778231450000,-1405.58,0.00012673,2]
[421855945,1778231450000,-749.54,0.00012672,2]
[421855950,1778231450000,-578.58,0.00012673,2]
[421855946,1778231450000,-2703.92,0.00012672,2]
[421855925,1778231450000,-500.0,0.00012666,2]
[421855940,1778231450000,-966.81,0.00012672,2]
[421855963,1778231450000,-506.88,0.00012673,2]
[421855921,1778231450000,-567.89,0.00012666,2]
[421855923,1778231450000,-746.22,0.00012666,2]
[421855922,1778231450000,-1537.23,0.00012666,2]
[421855932,1778231450000,-1385.29,0.00012666,2]
[421855924,1778231450000,-500.0,0.00012666,2]
[421855928,1778231450000,-1929.06,0.00012666,2]
[421855936,1778231450000,-787.16,0.00012672,2]
[421855934,1778231450000,-4905.18,0.00012666,2]
[421855947,1778231450000,-643.3,0.00012672,2]
[421855927,1778231450000,-2483.47,0.00012666,2]
[421855926,1778231450000,-914.28,0.00012666,2]
[421855931,1778231450000,-1100.88,0.00012666,2]
[421855935,1778231450000,-576.02,0.00012666,2]
[421855933,1778231450000,-500.0,0.00012666,2]
[421855930,1778231450000,-567.58,0.00012666,2]
[421855938,1778231450000,-934.48,0.00012672,2]
[421855948,1778231450000,-500.0,0.00012673,2]
[421855937,1778231450000,-1220.01,0.00012672,2]
[421855949,1778231450000,-500.0,0.00012673,2]
[421855929,1778231450000,-1001.21,0.00012666,2]
[421855965,1778231450000,-668.88,0.00012673,2]
[421856012,1778231450000,-500.0,0.0001294,2]
[421855969,1778231450000,-1554.37,0.00012673,2]
[421855991,1778231450000,-160.0,0.00012688,2]
[421855993,1778231450000,-3759.249186,0.00012688,2]
[421855992,1778231450000,-1959.624593,0.00012688,2]
[421855997,1778231450000,-151.0,0.000127,2]
[421855994,1778231450000,-160.0,0.00012688,2]
[421855998,1778231450000,-500.0,0.00012871,2]
[421855999,1778231450000,-500.0,0.00012871,2]
[421856000,1778231450000,-500.0,0.00012871,2]
[421856003,1778231450000,-209.0,0.00012893,2]
[421855995,1778231450000,-2635.641862,0.00012688,2]
[421856002,1778231450000,-822.0,0.00012893,2]
[421856007,1778231450000,-16152.63159879,0.000129,2]
[421856001,1778231450000,-822.0,0.00012893,2]
[421856006,1778231450000,-16152.6315988,0.000129,2]
[421856008,1778231450000,-16152.63159879,0.000129,2]
[421856010,1778231450000,-500.0,0.0001294,2]
[421856011,1778231450000,-728.45,0.0001294,2]
[421856009,1778231450000,-15000.0,0.00012936,2]
[421856013,1778231450000,-500.0,0.0001294,2]
[421855968,1778231450000,-911.99,0.00012673,2]
[421856004,1778231450000,-160.70824265,0.000129,2]
[421855996,1778231450000,-5111.283724,0.00012688,2]
[421856005,1778231450000,-151.0,0.000129,2]
[421855982,1778231450000,-522.75,0.00012673,2]
[421855987,1778231450000,-500.0,0.00012673,2]
[421855967,1778231450000,-558.3,0.00012673,2]
[421855970,1778231450000,-500.0,0.00012673,2]
[421855971,1778231450000,-3117.39,0.00012673,2]
[421855972,1778231450000,-1286.7596,0.00012673,2]
[421855973,1778231450000,-500.0,0.00012673,2]
[421855977,1778231450000,-1515.53,0.00012673,2]
[421855978,1778231450000,-361.36,0.00012673,2]
[421855976,1778231450000,-745.57,0.00012673,2]
[421855975,1778231450000,-500.0,0.00012673,2]
[421855974,1778231450000,-538.88,0.00012673,2]
[421855979,1778231450000,-521.42,0.00012673,2]
[421855980,1778231450000,-2614.11,0.00012673,2]
[421855981,1778231450000,-500.0,0.00012673,2]
[421855989,1778231450000,-1473.37,0.00012673,2]
[421855985,1778231450000,-657.95,0.00012673,2]
[421855990,1778231450000,-459.31,0.00012673,2]
[421855988,1778231450000,-500.0,0.00012673,2]
[421855984,1778231450000,-500.0,0.00012673,2]
[421855986,1778231450000,-834.58,0.00012673,2]
[421855983,1778231450000,-534.67,0.00012673,2]
[421856048,1778231451000,-963.63,0.00012947,2]
[421856049,1778231451000,-500.0,0.00012947,2]
[421856054,1778231451000,-500.0,0.00012947,2]
[421856050,1778231451000,-366.5212325,0.00012947,2]
[421856047,1778231451000,-500.0,0.00012947,2]
[421856040,1778231451000,-2116.84,0.00012946,2]
[421856043,1778231451000,-643.3,0.00012946,2]
[421856046,1778231451000,-578.58,0.00012947,2]
[421856041,1778231451000,-749.54,0.00012946,2]
[421856051,1778231451000,-500.0,0.00012947,2]
[421856045,1778231451000,-500.0,0.00012947,2]
[421856055,1778231451000,-1459.13,0.00012947,2]
[421856067,1778231451000,-3117.39,0.00012947,2]
[421856052,1778231451000,-518.36,0.00012947,2]
[421856053,1778231451000,-575.07,0.00012947,2]
[421856056,1778231451000,-574.3,0.00012947,2]
[421856058,1778231451000,-1405.58,0.00012947,2]
[421856057,1778231451000,-626.06,0.00012947,2]
[421856061,1778231451000,-668.88,0.00012947,2]
[421856060,1778231451000,-500.0,0.00012947,2]
[421856066,1778231451000,-500.0,0.00012947,2]
[421856070,1778231451000,-538.88,0.00012947,2]
[421856063,1778231451000,-558.3,0.00012947,2]
[421856036,1778231451000,-973.86,0.00012946,2]
[421856059,1778231451000,-506.88,0.00012947,2]
[421856044,1778231451000,-500.0,0.00012947,2]
[421856015,1778231451000,-1587.79,0.0001294,2]
[421856037,1778231451000,-966.81,0.00012946,2]
[421856017,1778231451000,-679.82,0.0001294,2]
[421856014,1778231451000,-19503.01,0.0001294,2]
[421856016,1778231451000,-3898.24,0.0001294,2]
[421856064,1778231451000,-911.99,0.00012947,2]
[421856023,1778231451000,-2483.47,0.0001294,2]
[421856018,1778231451000,-1537.23,0.0001294,2]
[421856020,1778231451000,-500.0,0.0001294,2]
[421856021,1778231451000,-500.0,0.0001294,2]
[421856019,1778231451000,-746.22,0.0001294,2]
[421856025,1778231451000,-1001.21,0.0001294,2]
[421856022,1778231451000,-914.28,0.0001294,2]
[421856038,1778231451000,-3568.78,0.00012946,2]
[421856024,1778231451000,-1929.06,0.0001294,2]
[421856035,1778231451000,-934.48,0.00012946,2]
[421856033,1778231451000,-787.16,0.00012946,2]
[421856028,1778231451000,-1385.29,0.0001294,2]
[421856026,1778231451000,-567.58,0.0001294,2]
[421856032,1778231451000,-166.050752,0.00012942,2]
[421856027,1778231451000,-1100.88,0.0001294,2]
[421856034,1778231451000,-1220.01,0.00012946,2]
[421856029,1778231451000,-500.0,0.0001294,2]
[421856031,1778231451000,-576.02,0.0001294,2]
[421856042,1778231451000,-2703.92,0.00012946,2]
[421856039,1778231451000,-2154.73,0.00012946,2]
[421856030,1778231451000,-4905.18,0.0001294,2]
[421856062,1778231451000,-500.0,0.00012947,2]
[421856065,1778231451000,-1554.37,0.00012947,2]
[421856068,1778231451000,-500.0,0.00012947,2]
[421856096,1778231451000,-160.0,0.000131,2]
[421856098,1778231451000,-500.0,0.00013145,2]
[421856100,1778231451000,-500.0,0.00013145,2]
[421856103,1778231451000,-151.0,0.000132,2]
[421856102,1778231451000,-3045.17725455,0.00013198,2]
[421856101,1778231451000,-822.0,0.00013186,2]
[421856117,1778231451000,-500.0,0.00013214,2]
[421856106,1778231451000,-500.0,0.00013214,2]
[421856107,1778231451000,-728.45,0.00013214,2]
[421856105,1778231451000,-3045.17725455,0.00013206,2]
[421856116,1778231451000,-500.0,0.00013214,2]
[421856112,1778231451000,-3898.24,0.00013214,2]
[421856108,1778231451000,-500.0,0.00013214,2]
[421856114,1778231451000,-1537.23,0.00013214,2]
[421856115,1778231451000,-746.22,0.00013214,2]
[421856111,1778231451000,-1587.79,0.00013214,2]
[421856110,1778231451000,-19503.01,0.00013214,2]
[421856109,1778231451000,-500.0,0.00013214,2]
[421856118,1778231451000,-914.28,0.00013214,2]
[421856119,1778231451000,-2483.47,0.00013214,2]
[421856121,1778231451000,-1001.21,0.00013214,2]
[421856123,1778231451000,-1100.88,0.00013214,2]
[421856122,1778231451000,-567.58,0.00013214,2]
[421856069,1778231451000,-1286.7596,0.00012947,2]
[421856120,1778231451000,-1929.06,0.00013214,2]
[421856097,1778231451000,-300.23,0.000131,2]
[421856095,1778231451000,-4456.06374076,0.00013027,2]
[421856113,1778231451000,-679.82,0.00013214,2]
[421856094,1778231451000,-10007.95060756,0.00013,2]
[421856073,1778231451000,-1515.53,0.00012947,2]
[421856099,1778231451000,-500.0,0.00013145,2]
[421856076,1778231451000,-500.0,0.00012947,2]
[421856077,1778231451000,-522.75,0.00012947,2]
[421856074,1778231451000,-521.42,0.00012947,2]
[421856081,1778231451000,-834.58,0.00012947,2]
[421856071,1778231451000,-500.0,0.00012947,2]
[421856079,1778231451000,-220.18,0.00012947,2]
[421856075,1778231451000,-2614.11,0.00012947,2]
[421856080,1778231451000,-657.95,0.00012947,2]
[421856084,1778231451000,-1473.37,0.00012947,2]
[421856090,1778231451000,-1780.539186,0.00012956,2]
[421856078,1778231451000,-534.67,0.00012947,2]
[421856086,1778231451000,-282.132364,0.0001295,2]
[421856104,1778231451000,-151.0,0.000132,2]
[421856093,1778231451000,-35253.42344025,0.00013,2]
[421856088,1778231451000,-155.0,0.00012955,2]
[421856087,1778231451000,-404.264728,0.0001295,2]
[421856091,1778231451000,-3401.078372,0.00012956,2]
[421856082,1778231451000,-500.0,0.00012947,2]
[421856072,1778231451000,-745.57,0.00012947,2]
[421856085,1778231451000,-160.0,0.0001295,2]
[421856089,1778231451000,-160.0,0.00012956,2]
[421856083,1778231451000,-500.0,0.00012947,2]
[421856092,1778231451000,-423.16313693,0.00012975,2]
[421856169,1778231452000,-2614.11,0.00013221,2]
[421856174,1778231452000,-834.58,0.00013221,2]
[421856167,1778231452000,-1515.53,0.00013221,2]
[421856163,1778231452000,-538.88,0.00013221,2]
[421856161,1778231452000,-3117.39,0.00013221,2]
[421856165,1778231452000,-500.0,0.00013221,2]
[421856164,1778231452000,-1286.7596,0.00013221,2]
[421856158,1778231452000,-911.99,0.00013221,2]
[421856162,1778231452000,-500.0,0.00013221,2]
[421856157,1778231452000,-558.3,0.00013221,2]
[421856159,1778231452000,-1554.37,0.00013221,2]
[421856160,1778231452000,-500.0,0.00013221,2]
[421856155,1778231452000,-668.88,0.00013221,2]
[421856191,1778231452000,-500.0,0.00013419,2]
[421856171,1778231452000,-522.75,0.00013221,2]
[421856170,1778231452000,-500.0,0.00013221,2]
[421856177,1778231452000,-1473.37,0.00013221,2]
[421856168,1778231452000,-521.42,0.00013221,2]
[421856173,1778231452000,-657.95,0.00013221,2]
[421856176,1778231452000,-500.0,0.00013221,2]
[421856178,1778231452000,-822.0,0.00013248,2]
[421856179,1778231452000,-159.2380533,0.00013268,2]
[421856181,1778231452000,-4730.64907155,0.00013309,2]
[421856180,1778231452000,-520.0,0.00013308,2]
[421856183,1778231452000,-2672.215354,0.00013322,2]
[421856182,1778231452000,-3045.17725455,0.00013321,2]
[421856166,1778231452000,-745.57,0.00013221,2]
[421856175,1778231452000,-500.0,0.00013221,2]
[421856156,1778231452000,-500.0,0.00013221,2]
[421856126,1778231452000,-4905.18,0.00013214,2]
[421856145,1778231452000,-500.0,0.00013221,2]
[421856184,1778231452000,-3594.057084,0.00013322,2]
[421856125,1778231452000,-500.0,0.00013214,2]
[421856124,1778231452000,-1385.29,0.00013214,2]
[421856128,1778231452000,-787.16,0.0001322,2]
[421856127,1778231452000,-576.02,0.00013214,2]
[421856129,1778231452000,-1220.01,0.0001322,2]
[421856136,1778231452000,-749.54,0.0001322,2]
[421856134,1778231452000,-2154.73,0.0001322,2]
[421856130,1778231452000,-934.48,0.0001322,2]
[421856131,1778231452000,-973.86,0.0001322,2]
[421856132,1778231452000,-966.81,0.0001322,2]
[421856133,1778231452000,-3568.78,0.0001322,2]
[421856135,1778231452000,-2116.84,0.0001322,2]
[421856137,1778231452000,-2703.92,0.0001322,2]
[421856139,1778231452000,-500.0,0.00013221,2]
[421856141,1778231452000,-578.58,0.00013221,2]
[421856138,1778231452000,-643.3,0.0001322,2]
[421856140,1778231452000,-500.0,0.00013221,2]
[421856151,1778231452000,-626.06,0.00013221,2]
[421856149,1778231452000,-1459.13,0.00013221,2]
[421856153,1778231452000,-506.88,0.00013221,2]
[421856150,1778231452000,-574.3,0.00013221,2]
[421856146,1778231452000,-518.36,0.00013221,2]
[421856144,1778231452000,-500.0,0.00013221,2]
[421856154,1778231452000,-500.0,0.00013221,2]
[421856147,1778231452000,-575.07,0.00013221,2]
[421856148,1778231452000,-500.0,0.00013221,2]
[421856152,1778231452000,-1405.58,0.00013221,2]
[421856142,1778231452000,-500.0,0.00013221,2]
[421856143,1778231452000,-963.63,0.00013221,2]
[421856185,1778231452000,-822.0,0.0001335,2]
[421856172,1778231452000,-534.67,0.00013221,2]
[421856190,1778231452000,-500.0,0.00013419,2]
[421856222,1778231452000,-2116.84,0.00013494,2]
[421856221,1778231452000,-2154.73,0.00013494,2]
[421856223,1778231452000,-749.54,0.00013494,2]
[421856226,1778231452000,-500.0,0.00013495,2]
[421856227,1778231452000,-500.0,0.00013495,2]
[421856220,1778231452000,-3568.78,0.00013494,2]
[421856229,1778231452000,-500.0,0.00013495,2]
[421856230,1778231452000,-963.63,0.00013495,2]